Cogmind - Beta 16 @@@ ROGUE MODE // 2025.12.18 @ 17:53:21 Player: JuustuToug Result: Destroyed by H-61 Shepherd with Heavy Assault Cannon Performance ------------- Evolutions (2) 1000 Regions Visited (11) 2200 Robots Destroyed (155) 775 Value Destroyed (5091) 5091 Prototype IDs (29) 580 Alien Tech Used (0) 0 Bonus (2899) 2899 TOTAL SCORE: 12545 Bonus ------- High Alert Combat Kills 463 Follower Combat Kills 797 Entered Garrisons 400 Used RIF Installer 1000 Aligned with FarCom 300 Friendly Fire -61 Cogmind --------- Core Integrity 0/550 Matter 262/300 Energy 233/265 System Corruption 6% Temperature Cool (0) Movement Treading (160) Location -8/Materials Parts ------- > --- POWER (1) -------- Improved Ion Engine > --- PROPULSION (4) --- Light Treads Light Treads Light Treads Light Treads > --- UTILITY (4) ------ Improved Heat Sink High-capacity Storage Unit Core Analyzer Hacking Suite > --- WEAPON (2) ------- Heavy Laser > --- INVENTORY (20) --- Cooled Ion Engine Light Treads Light Treads Light Treads Light Treads Improved Heat Sink Machine Analyzer Heavy Armor Plating Heavy Armor Plating Relay Coupler [NC] (31) Relay Coupler [Grunt] (23) Relay Coupler [Sentry] (23) Improved Medium Laser Heavy Laser Heavy Assault Rifle Heavy Assault Rifle Flak Gun Datajack Peak State ------------ > --- POWER ------------ Cooled Ion Engine > --- PROPULSION ------- Light Treads Light Treads Light Treads Improved Treads > --- UTILITY ---------- Advanced Heat Sink High-capacity Storage Unit Hardlight Generator Hacking Suite > --- WEAPON ----------- Heavy Laser Flak Gun > --- INVENTORY -------- Cooled Ion Engine Improved Treads Improved Heat Sink Transport Network Coupler Heavy Armor Plating Heavy Armor Plating Improved Medium Laser Heavy Laser Heavy Laser Ion Cannon Flak Gun Flak Gun Grenade Launcher Datajack Great Maul Deploy-a-Sentry Deploy-a-Sentry Deploy-a-Sentry [Rating: 34] Favorites ----------- Power Cooled Ion Engine Engine Cooled Ion Engine Power Core Light Nuclear Core Propulsion Light Treads Treads Light Treads Leg Aluminum Leg Utility High-capacity Storage Unit Device Improved Heat Sink Storage High-capacity Storage Unit Processor Core Analyzer Hackware Hacking Suite Weapon Flak Gun Energy Gun Heavy Laser Energy Cannon Beam Cannon Ballistic Gun Flak Gun Launcher Grenade Launcher Impact Weapon Great Maul Special Melee Weapon Datajack Build | -11 -10 -10 -9 -9 -9 -8 -8 -8 -8 -8 -8 ------- Run | Yrd Mat Min Mat Min Exi Min Mat Gar Mat Gar Mat Slots Evolved 4 | . . . 2 . . . 2 . . . . Power . | . . . . . . . . . . . . Propulsion 2 | . . . 1 . . . 1 . . . . Utility 2 | . . . 1 . . . 1 . . . . Weapon . | . . . . . . . . . . . . Parts Attached 102 | 7 8 3 29 1 1 1 10 13 4 16 9 Power 15 | 1 1 . 4 . 1 . . 3 . 3 2 Engine 13 | 1 1 . 2 . 1 . . 3 . 3 2 Core 2 | . . . 2 . . . . . . . . Reactor . | . . . . . . . . . . . . Propulsion 35 | 2 . 1 10 . . 1 4 5 2 6 4 Treads 33 | 2 . 1 8 . . 1 4 5 2 6 4 Leg 2 | . . . 2 . . . . . . . . Wheel . | . . . . . . . . . . . . Hover . | . . . . . . . . . . . . Flight . | . . . . . . . . . . . . Utility 25 | 2 6 1 4 1 . . 4 1 . 6 . Device 13 | 1 . 1 3 1 . . 3 1 . 3 . Storage 7 | 1 5 . . . . . 1 . . . . Processor 2 | . 1 . . . . . . . . 1 . Hackware 3 | . . . 1 . . . . . . 2 . Protection . | . . . . . . . . . . . . Artifact . | . . . . . . . . . . . . Weapon 27 | 2 1 1 11 . . . 2 4 2 1 3 Energy Gun 8 | 1 . . 3 . . . 1 . . 1 2 Energy Cannon 2 | . 1 . . . . . . 1 . . . Ballistic Gun 13 | 1 . . 8 . . . 1 1 1 . 1 Ballistic Cannon . | . . . . . . . . . . . . Launcher 2 | . . 1 . . . . . . 1 . . Special Weapon . | . . . . . . . . . . . . Impact Weapon 1 | . . . . . . . . 1 . . . Slashing Weapon . | . . . . . . . . . . . . Piercing Weapon . | . . . . . . . . . . . . Special Melee Weapon 1 | . . . . . . . . 1 . . . Unidentified Prototypes . | . . . . . . . . . . . . Parts Lost 20 | . . 3 10 . . . . 1 1 1 4 Power 2 | . . . 2 . . . . . . . . Propulsion 7 | . . 1 2 . . . . 1 . 1 2 Utility 3 | . . 1 2 . . . . . . . . Weapon 8 | . . 1 4 . . . . . 1 . 2 Highest Loss Streak 6 | . . 2 6 . . . . 1 1 1 3 To Critical Strikes . | . . . . . . . . . . . . Average Backups 15 | 1 14 15 17 18 17 15 14 15 16 16 17 Power 1 | . 1 1 1 2 1 1 1 1 1 1 1 Propulsion 1 | . . . 1 3 2 2 1 1 2 2 4 Utility 5 | . 5 5 6 5 4 4 4 5 6 6 6 Weapon 6 | . 6 7 7 7 7 7 7 6 6 6 4 Tool/Special . | . . . . . . . . . . . . Unused Backups 51 | . 4 1 16 1 1 . 7 3 . 3 15 Power 4 | . . . 3 . . . . . . . 1 Propulsion 6 | . . . 2 . . . . . . . 4 Utility 19 | . 1 1 3 1 1 . . 3 . 2 7 Weapon 22 | . 3 . 8 . . . 7 . . 1 3 Tool/Special . | . . . . . . . . . . . . Average Slot Usage (%) 98 | . 100 99 96 100 100 100 98 100 99 100 98 Engine 9 | . 14 14 2 11 11 11 9 9 9 9 9 Core 1 | . . . 7 . . . . . . . . Treads 31 | . 28 27 26 33 33 33 36 36 36 36 35 Device 13 | . 13 13 13 11 11 11 16 18 18 15 9 Storage 11 | . 14 14 11 11 11 11 9 9 9 9 9 Hackware 6 | . . . 7 11 11 11 9 9 9 9 9 Energy Gun 6 | . 1 3 8 11 11 11 9 . . 9 8 Energy Cannon 4 | . 12 10 . . . . . 9 8 . . Ballistic Gun 11 | . 14 13 13 11 11 11 9 8 9 8 8 Peak Build Rating 34 | 7 9 9 22 23 24 24 34 34 30 32 32 Average Rating 21 | 4 8 8 17 22 23 24 30 31 29 30 29 On Entrance 20 | . 7 8 9 22 23 24 24 34 30 27 32 Avg Prop Armor Cover (%) 6 | . . . 6 . . . . . . . . Naked Turns . | . . . . . . . . . . . . Heaviest Build 89 | 13 89 52 55 55 55 55 62 64 63 64 59 Greatest Support 86 | 40 40 40 60 60 60 60 83 86 83 83 80 Greatest Overweight (x) 2 | . 2 1 1 . . . . . . . . Average Overweight (x) . | . 1 1 . . . . . . . . . Largest Inventory Capacity 25 | 8 25 20 20 20 20 20 20 20 20 20 20 Average Capacity 19 | 7 20 20 20 20 20 20 20 20 20 20 20 Most Carried 20 | 3 19 16 20 20 20 20 20 20 20 20 20 Average Carried 18 | 1 14 15 18 20 19 20 19 19 20 19 19 Final Capacity 20 | 8 20 20 20 20 20 20 20 20 20 20 20 Final Carried 20 | 3 15 15 20 20 20 20 20 20 20 20 20 Class Distribution -------------------- 71% | Scavenger-Mutant 28% | Mutant Dominant Class ---------------- Mutant | -10/Materials Mutant | -10/Mines Scavenger-Mutant | -9/Materials Scavenger-Mutant | -9/Mines Scavenger-Mutant | -9/Exiles Scavenger-Mutant | -8/Mines Scavenger-Mutant | -8/Materials Scavenger-Mutant | -8/Garrison Scavenger-Mutant | -8/Materials Scavenger-Mutant | -8/Garrison Scavenger-Mutant | -8/Materials Resources | -11 -10 -10 -9 -9 -9 -8 -8 -8 -8 -8 -8 ----------- Run | Yrd Mat Min Mat Min Exi Min Mat Gar Mat Gar Mat Matter Collected 3157 | 201 298 223 619 84 . 57 243 360 58 631 383 Remotely . | . . . . . . . . . . . . Salvage Created 4872 | 14 318 293 1489 216 . 147 453 757 175 330 680 Parts 327 | 3 29 35 100 12 . 7 23 37 14 27 40 Haulers Intercepted 7 | . 2 . 3 . . . 1 . . . 1 Recyclers Shooed 9 | 1 . 1 5 . . . 2 . . . . Parts Field Recycled . | . . . . . . . . . . . . Retrieved Matter . | . . . . . . . . . . . . Parts Self-Destructed . | . . . . . . . . . . . . Prevented . | . . . . . . . . . . . . Parts Restored . | . . . . . . . . . . . . Kills | -11 -10 -10 -9 -9 -9 -8 -8 -8 -8 -8 -8 ------- Run | Yrd Mat Min Mat Min Exi Min Mat Gar Mat Gar Mat Combat Hostiles Destroyed 121 | . 9 14 29 5 . 3 10 17 4 17 13 Guns 78 | . 6 2 25 5 . 3 10 7 2 7 11 Cannons 14 | . 3 1 . . . . . 10 . . . AOE 29 | . . 11 4 . . . . . 2 10 2 Classes Destroyed 16 | 1 4 1 4 . . 1 . 1 2 . 2 Worker 7 | . 2 2 2 . . . . . . . 1 Builder 2 | . . . . . . . . . . . 2 Tunneler 2 | 1 . . . . . 1 . . . . . Hauler 7 | . 2 . 3 . . . 1 . . . 1 Recycler 6 | . . . 3 . . . 1 . 1 . 1 Mechanic 2 | . . . 1 . . . . . . . 1 Operator 2 | . . . 2 . . . . . . . . Watcher 5 | . 1 . 3 . . . 1 . . . . Swarmer 45 | . 9 8 11 . . . 4 . 2 8 3 Grunt 45 | . . 6 12 5 . 2 4 10 . 2 4 Brawler 1 | . . . . . . 1 . . . . . Duelist 2 | . . . . . . . . 1 . . 1 Sentry 22 | . . . 6 . . . 2 6 . 4 4 Specialist 1 | . . . . . . . . . . . 1 Hunter 2 | . . . . . . . . . 1 . 1 Programmer 4 | . . . . . . . . . 1 3 . Best Kill Streak 8 | 1 6 5 8 3 . 3 7 4 5 3 5 Combat Bots Only 7 | . 6 3 7 3 . 3 7 4 4 3 4 Max Kills in Single Turn 5 | 1 1 3 3 1 . 1 1 1 1 3 5 Gunslinging . | . . . . . . . . . . . . Exploded 3 | . . 3 2 . . . . . 1 3 2 Melee . | . . . . . . . . . . . . Uniques/NPCs Destroyed . | . . . . . . . . . . . . Combat | -11 -10 -10 -9 -9 -9 -8 -8 -8 -8 -8 -8 -------- Run | Yrd Mat Min Mat Min Exi Min Mat Gar Mat Gar Mat Hostile Shots Fired 580 | . 38 47 163 23 . 15 58 76 21 81 58 Missed 159 | . 10 14 39 4 . 5 18 23 7 21 18 Hits 421 | . 28 33 124 19 . 10 40 53 14 60 40 Melee 3 | . . . . . . . . 2 1 . . Projectile 418 | . 28 33 124 19 . 10 40 51 13 60 40 AOE 1 | . . . . . . . . . 1 . . Critical Strikes 12 | . . . 1 1 . . 2 2 . 3 3 Damage Taken 5796 | . 225 481 1475 256 . 162 475 701 246 784 991 Core 868 | . 9 82 177 12 . . 132 110 30 128 188 Absorbed by Shields 335 | . . . . . . . 76 163 28 68 . Regen/Repaired (Parts) 222 | . . . 222 . . . . . . . . Core Remaining (%) 71 | 100 . 63 . . . 52 . . . . . Volleys Fired 368 | 2 24 23 110 15 . 9 31 66 9 41 38 Largest 2 | 2 2 2 2 2 . 2 2 2 2 2 2 Hottest 99 | 70 80 90 79 79 . 79 97 88 88 99 97 Shots Fired 655 | 4 48 38 201 30 . 18 61 105 14 63 73 Gun 530 | 4 32 20 199 30 . 18 61 39 5 49 73 Cannon 98 | . 16 10 . . . . . 66 6 . . Launcher 27 | . . 8 2 . . . . . 3 14 . Special . | . . . . . . . . . . . . Kinetic 331 | 2 24 15 130 15 . 9 31 39 5 24 37 Thermal 297 | 2 24 15 69 15 . 9 30 66 6 25 36 Explosive 27 | . . 8 2 . . . . . 3 14 . Electromagnetic . | . . . . . . . . . . . . Robot Hit Streak 22 | 4 6 8 22 5 . 16 13 13 5 15 11 Robot Miss Streak 8 | . 2 1 2 2 . 2 8 8 3 6 4 Penetration Max . | . . . . . . . . . . . . Secondary Targets 7 | . 1 . 4 1 . 1 . . . . . Max Gunslinging Chain 1 | . 1 . 1 1 . 1 . . . . . Shots Hit Robots 457 | 4 28 21 154 17 . 15 44 66 8 44 56 Core Hits 333 | 2 16 27 72 9 . 6 40 53 12 39 57 Critical Kills . | . . . . . . . . . . . . Critical Parts Destroyed 1 | . . . 1 . . . . . . . . Critical Strikes 11 | . . 1 7 . . 1 . . . . 2 Burn 10 | . . 1 6 . . 1 . . . . 2 Destroy 1 | . . . 1 . . . . . . . . Melee Attacks 17 | . . . . . . . . 7 . 10 . Impact 1 | . . . . . . . . 1 . . . Slashing . | . . . . . . . . . . . . Piercing . | . . . . . . . . . . . . Sneak Attacks 14 | . . . . . . . . 6 . 8 . Combat Hostiles 1 | . . . . . . . . . . 1 . Follow-up Attacks . | . . . . . . . . . . . . Damage Inflicted 9661 | 55 467 962 2238 267 . 247 825 1361 341 1526 1372 Guns 6196 | 55 273 194 1995 260 . 230 801 602 75 649 1062 Cannons 1096 | . 194 69 . . . . . 759 74 . . Explosions 2271 | . . 680 238 . . . . . 192 877 284 Melee . | . . . . . . . . . . . . Ramming 98 | . . 19 5 7 . 17 24 . . . 26 Kinetic 3895 | 29 198 143 1214 124 . 92 466 602 75 373 579 Thermal 3397 | 26 269 120 781 136 . 138 335 759 74 276 483 Explosive 2271 | . . 680 238 . . . . . 192 877 284 Electromagnetic . | . . . . . . . . . . . . Impact . | . . . . . . . . . . . . Slashing . | . . . . . . . . . . . . Piercing . | . . . . . . . . . . . . Highest Corruption 6 | . . . . . . . . . 1 6 6 Average Corruption 5 | . . . . . . . . . 1 5 6 Corruption Purged . | . . . . . . . . . . . . Corruption Blocked . | . . . . . . . . . . . . Effects 47 | . . . . . . . . . . 35 12 Message Errors 10 | . . . . . . . . . . 8 2 Matter Fused 14 | . . . . . . . . . . 11 3 Heat Flow Errors 5 | . . . . . . . . . . 4 1 Energy Discharges 6 | . . . . . . . . . . 4 2 Parts Rejected 1 | . . . . . . . . . . 1 . Data Loss (minor) 4 | . . . . . . . . . . 2 2 Data Loss (major) 1 | . . . . . . . . . . 1 . Misfires 2 | . . . . . . . . . . 2 . Alerts 1 | . . . . . . . . . . 1 . Weapon Failures 3 | . . . . . . . . . . 1 2 Overload Shots . | . . . . . . . . . . . . Overflow Damage 195 | . . 33 13 . . . . . 11 35 103 Projectiles . | . . . . . . . . . . . . Explosions 195 | . . 33 13 . . . . . 11 35 103 Melee . | . . . . . . . . . . . . Knockbacks 1 | . . . . . . . . . . . 1 Impact 1 | . . . . . . . . . . . 1 Kinetic . | . . . . . . . . . . . . Secondary . | . . . . . . . . . . . . Self-Inflicted Damage 288 | . . 34 57 . . . . . . . 197 Shots 7 | . . 3 2 . . . . . . . 2 Rammed 9 | . . 3 3 1 . . 1 . . . 1 Targets Rammed 10 | . . 3 3 1 . 1 1 . . . 1 Kicked . | . . . . . . . . . . . . Crushed 1 | . . . . . . 1 . . . . . Highest Temperature 264 | 18 108 129 27 14 . 5 . 11 . 264 232 Average Temperature 42 | 10 33 45 9 4 . 5 . 6 . 99 39 Received Heat Transfer 1925 | . . 222 522 159 . 54 231 347 67 152 171 Effects 1 | . . . . . . . . . . 1 . Energy Bleed 1 | . . . . . . . . . . 1 . Siege Activations . | . . . . . . . . . . . . Martial Activations . | . . . . . . . . . . . . Shielding Activations . | . . . . . . . . . . . . Robots Disrupted . | . . . . . . . . . . . . Combat Hostiles . | . . . . . . . . . . . . Robots Corrupted . | . . . . . . . . . . . . Combat Hostiles . | . . . . . . . . . . . . Parts Fried . | . . . . . . . . . . . . Impact Corruptions . | . . . . . . . . . . . . Robots Melted . | . . . . . . . . . . . . Combat Hostiles . | . . . . . . . . . . . . Parts Melted 10 | . 2 1 4 . . . 1 1 . . 1 Heat Transferred 7844 | 74 629 370 2516 296 . 370 666 1221 111 518 1073 Parts Sabotaged . | . . . . . . . . . . . . Parts Stolen . | . . . . . . . . . . . . Parts Stripped . | . . . . . . . . . . . . Power Chain Reactions . | . . . . . . . . . . . . Alert | -11 -10 -10 -9 -9 -9 -8 -8 -8 -8 -8 -8 ------- Run | Yrd Mat Min Mat Min Exi Min Mat Gar Mat Gar Mat Maximum Alert Level 4 | . . . 1 . . . . 3 3 4 3 Low Security (%) 69 | 100 100 100 97 100 . 100 100 25 . . . Level 1 1 | . . . 2 . . . . 6 . . . Level 2 15 | . . . . . . . . 41 98 33 87 Level 3 8 | . . . . . . . . 25 1 35 12 Level 4 4 | . . . . . . . . . . 31 . Level 5 . | . . . . . . . . . . . . High Security . | . . . . . . . . . . . . Max Security . | . . . . . . . . . . . . Peak Influence 1292 | 5 158 163 313 137 . 93 196 985 713 1292 760 Initial 629 | . . . 6 57 . . . . 479 425 629 Average 271 | . 25 70 117 73 . 16 56 508 618 902 635 Influence Increases 5227 | 5 287 488 900 120 . 152 373 1055 316 1037 494 Destroy 0b10 Robot/C 3040 | . 180 320 580 100 . 100 220 520 180 580 260 Destroy 0b10 Robot/NC 165 | 5 25 10 70 . . 5 15 . 5 . 30 Destroy Leader 504 | . 36 60 142 20 . 30 44 20 50 30 72 Allied During Kill 192 | . . 7 . . . 17 8 38 50 63 9 Successful Hack 191 | . 30 . 62 . . . 26 26 . 30 17 Disable Machine 60 | . . 15 . . . . . . 15 . 30 Anti-Garrison Action 550 | . . . . . . . . 350 . 200 . Destroy Structure 225 | . 1 61 16 . . . . 41 16 59 31 Lose Combat Pursuer 300 | . 15 15 30 . . . 60 60 . 75 45 Influence Decreases 4548 | 5 287 470 771 267 . 152 373 70 646 400 1107 Entered New Map 1501 | . . . 12 90 . . . . 506 230 663 Time Decay 2111 | 5 287 420 548 177 . 132 218 . 70 . 254 Lost Part 161 | . . 30 61 . . . . 10 10 10 40 Lost Ally 344 | . . 20 . . . 20 24 60 60 160 . Purge Threat 431 | . . . 150 . . . 131 . . . 150 Squads Dispatched 7 | . . . 3 . . . . . 2 . 2 Investigation 2 | . . . 1 . . . . . . . 1 Extermination . | . . . . . . . . . . . . Reinforcement 2 | . . . 2 . . . . . . . . Assault 1 | . . . . . . . . . . . 1 Garrison 2 | . . . . . . . . . 2 . . Intercept . | . . . . . . . . . . . . Searches Triggered . | . . . . . . . . . . . . Construction Impeded . | . . . . . . . . . . . . Haulers Reinforced . | . . . . . . . . . . . . Active Scanning Responses . | . . . . . . . . . . . . Cargo Convoy Interrupts . | . . . . . . . . . . . . Stealth | -11 -10 -10 -9 -9 -9 -8 -8 -8 -8 -8 -8 --------- Run | Yrd Mat Min Mat Min Exi Min Mat Gar Mat Gar Mat Distress Signals 7 | . 2 . 3 . . . 1 . . . 1 Communications Jammed . | . . . . . . . . . . . . Distress Signals . | . . . . . . . . . . . . Times Spotted 180 | . 13 15 40 5 . 4 23 24 10 25 21 Peak Tracking Total 5 | . 4 3 5 3 . 3 4 5 3 4 5 Tactical Retreats 12 | . 1 1 2 . . . 2 2 . 3 1 Traps | -11 -10 -10 -9 -9 -9 -8 -8 -8 -8 -8 -8 ------- Run | Yrd Mat Min Mat Min Exi Min Mat Gar Mat Gar Mat Traps Triggered 3 | . . . . . . . . . . 1 2 Indirectly . | . . . . . . . . . . . . Trap Hack Attempts . | . . . . . . . . . . . . Triggered . | . . . . . . . . . . . . Disarmed . | . . . . . . . . . . . . Reprogrammed . | . . . . . . . . . . . . Reused . | . . . . . . . . . . . . Traps Extracted . | . . . . . . . . . . . . Installed . | . . . . . . . . . . . . Triggered . | . . . . . . . . . . . . Machines | -11 -10 -10 -9 -9 -9 -8 -8 -8 -8 -8 -8 ---------- Run | Yrd Mat Min Mat Min Exi Min Mat Gar Mat Gar Mat Machines Disabled 9 | . . 1 . . . . . 3 1 2 2 Max in Single Turn 2 | . . 1 . . . . . 1 1 1 2 Garrison Relay 5 | . . . . . . . . 3 . 2 . Machines Repaired . | . . . . . . . . . . . . Machines Dismantled . | . . . . . . . . . . . . Machines Sabotaged . | . . . . . . . . . . . . Overloaded Fab Kills . | . . . . . . . . . . . . Hacking | -11 -10 -10 -9 -9 -9 -8 -8 -8 -8 -8 -8 --------- Run | Yrd Mat Min Mat Min Exi Min Mat Gar Mat Gar Mat Machines Accessed 36 | . 7 . 11 . 2 . 4 3 1 5 3 Terminals 26 | . 6 . 6 . . . 3 3 . 5 3 Fabricators . | . . . . . . . . . . . . Repair Stations 2 | . . . 2 . . . . . . . . Recycling Units 2 | . 1 . 1 . . . . . . . . Scanalyzers 2 | . . . 2 . . . . . . . . Garrison Access 2 | . . . . . . . 1 . 1 . . Total Hacks 127 | . 28 . 51 . 2 . 17 9 3 8 9 Successful 77 | . 16 . 35 . 2 . 12 3 2 3 4 Failed 49 | . 12 . 15 . . . 5 6 1 5 5 Catastrophic 1 | . 1 . . . . . . . . . . Database Lockouts 1 | . . . 1 . . . . . . . . Manual 73 | . 25 . 21 . 1 . 10 4 2 1 9 Terminals 99 | . 26 . 31 . . . 16 9 . 8 9 Fabricators . | . . . . . . . . . . . . Repair Stations 7 | . . . 7 . . . . . . . . Recycling Units 6 | . 2 . 4 . . . . . . . . Scanalyzers 9 | . . . 9 . . . . . . . . Garrison Access 4 | . . . . . . . 1 . 3 . . Terminal Hacks 32 | . 5 . 13 . 2 . 5 2 . 3 2 Record 1 | . . . . . 1 . . . . . . Part Schematic 2 | . 2 . . . . . . . . . . Robot Analysis 1 | . 1 . . . . . . . . . . Prototype ID Bank 4 | . 1 . 2 . . . 1 . . . . Open Door 1 | . . . . . . . . . . 1 . Level Access Points 3 | . . . 1 . . . 1 . . . 1 Branch Access Points 1 | . . . 1 . . . . . . . . Emergency Access Points 2 | . . . 2 . . . . . . . . Terminal Index 3 | . 1 . 1 . . . 1 . . . . Alert Level 2 | . . . 1 . . . 1 . . . . Unreport Threat 3 | . . . 1 . . . 1 . . . 1 Security Status 1 | . . . 1 . . . . . . . . Surveillance Status 1 | . . . 1 . . . . . . . . Patrol Status 1 | . . . 1 . . . . . . . . Transport Status 1 | . . . 1 . . . . . . . . Garrison Registry 2 | . . . . . . . . 1 . 1 . Patrol Navigation 1 | . . . . . . . . . . 1 . Security Stations 1 | . . . . . . . . 1 . . . Proto ID Catalog 1 | . . . . . 1 . . . . . . Fabricator Hacks . | . . . . . . . . . . . . Repair Station Hacks 6 | . . . 6 . . . . . . . . Scan Component 3 | . . . 3 . . . . . . . . Repair 3 | . . . 3 . . . . . . . . Recycling Unit Hacks 2 | . 1 . 1 . . . . . . . . Retrieve Components 2 | . 1 . 1 . . . . . . . . Scanalyzer 6 | . . . 6 . . . . . . . . Retrieve Study 6 | . . . 6 . . . . . . . . Garrison Access Hacks 2 | . . . . . . . 1 . 1 . . Unlock Access 2 | . . . . . . . 1 . 1 . . Unauthorized Hacks 29 | . 10 . 9 . . . 6 1 1 . 2 Terminals 27 | . 9 . 9 . . . 6 1 . . 2 Botnet 11 | . 3 . 3 . . . 3 1 . . 1 Operators 3 | . 1 . 1 . . . . . . . 1 Skim 13 | . 5 . 5 . . . 3 . . . . Fabricators . | . . . . . . . . . . . . Repair Stations . | . . . . . . . . . . . . Recycling Units 1 | . 1 . . . . . . . . . . Reject 1 | . 1 . . . . . . . . . . Scanalyzers . | . . . . . . . . . . . . Garrison Access 1 | . . . . . . . . . 1 . . Restock 1 | . . . . . . . . . 1 . . Data Cores Recovered . | . . . . . . . . . . . . Used . | . . . . . . . . . . . . Hacking Detections 33 | . 7 . 11 . . . 3 3 1 5 3 Full Trace Events 3 | . . . 1 . . . . 2 . . . Feedback Events . | . . . . . . . . . . . . Feedback Blocked . | . . . . . . . . . . . . Robot Schematics Acquired . | . . . . . . . . . . . . Robots Built . | . . . . . . . . . . . . Authchips . | . . . . . . . . . . . . Time . | . . . . . . . . . . . . Total Robot Build Rating . | . . . . . . . . . . . . Part Schematics Acquired 2 | . 2 . . . . . . . . . . Parts Built . | . . . . . . . . . . . . Authchips . | . . . . . . . . . . . . Time . | . . . . . . . . . . . . Total Part Build Rating . | . . . . . . . . . . . . Part Studies Acquired 6 | . . . 6 . . . . . . . . Parts Repaired 3 | . . . 3 . . . . . . . . Time 90 | . . . 90 . . . . . . . . Parts Recycled . | . . . . . . . . . . . . Recycled Matter . | . . . . . . . . . . . . Retrieved Matter . | . . . . . . . . . . . . Retrieved Components 19 | . 10 . 9 . . . . . . . . Parts Scanalyzed . | . . . . . . . . . . . . Part Schematics Acquired . | . . . . . . . . . . . . Parts Damaged . | . . . . . . . . . . . . Bothacking | -11 -10 -10 -9 -9 -9 -8 -8 -8 -8 -8 -8 ------------ Run | Yrd Mat Min Mat Min Exi Min Mat Gar Mat Gar Mat Used RIF Installer 2 | . . . . . . . . 1 . 1 . Alert ID Control 1 | . . . . . . . . . . 1 . Robots Hacked 2 | . . . . . . . . . . 2 . Non-combat . | . . . . . . . . . . . . Combat 2 | . . . . . . . . . . 2 . Robot Hacks Applied 2 | . . . . . . . . . . 2 . formatsys_high 2 | . . . . . . . . . . 2 . Relay Couplers Released 22 | . . . . . . . . 11 3 8 . Machine Destruction 19 | . . . . . . . . 11 . 8 . Programmers 3 | . . . . . . . . . 3 . . Attached 2 | . . . . . . . . . . 2 . Fabnet Peak Effective % . | . . . . . . . . . . . . Robots Rewired 8 | . . . . . . . . 5 . 3 . Allies Hacked . | . . . . . . . . . . . . Hacks Repelled . | . . . . . . . . . . . . Allies | -11 -10 -10 -9 -9 -9 -8 -8 -8 -8 -8 -8 -------- Run | Yrd Mat Min Mat Min Exi Min Mat Gar Mat Gar Mat Total Allies 18 | . . 2 . 4 . . . 5 . 7 . Largest Group 4 | . . 2 . 4 4 3 2 3 3 4 1 Highest-Rated Group 151 | . . 38 . 71 71 40 31 90 90 151 40 Highest-Rated Ally 40 | . . 31 . 31 31 16 16 39 39 40 40 Total Orders . | . . . . . . . . . . . . Ally Attacks 169 | . . 8 . . . 30 13 40 21 45 12 Total Damage 3727 | . . 124 . . . 340 104 1410 327 1293 129 Kills 31 | . . 2 . . . 2 1 9 5 12 . Allies Corrupted . | . . . . . . . . . . . . Allies Melted . | . . . . . . . . . . . . Turrets Deployed 3 | . . . . . . . . 1 . 2 . Intel | -11 -10 -10 -9 -9 -9 -8 -8 -8 -8 -8 -8 ------- Run | Yrd Mat Min Mat Min Exi Min Mat Gar Mat Gar Mat Active Infowar (turns) 2521 | 14 1803 6 698 . . . . . . . . Terrain 698 | . . . 698 . . . . . . . . Seismic 1823 | 14 1803 6 . . . . . . . . . Robot Analysis Total 1 | . 1 . . . . . . . . . . Derelict Logs Recovered 3 | . . 2 . 1 . . . . . . . Drone Launches . | . . . . . . . . . . . . Drone Recoveries . | . . . . . . . . . . . . Exploration | -11 -10 -10 -9 -9 -9 -8 -8 -8 -8 -8 -8 ------------- Run | Yrd Mat Min Mat Min Exi Min Mat Gar Mat Gar Mat Turns Passed 11311 | 95 1843 1195 2210 362 558 604 908 1422 158 1407 549 Spaces Moved 5094 | 48 714 461 813 183 345 351 447 688 76 744 224 Core 2 | 2 . . . . . . . . . . . Treads 5092 | 46 714 461 813 183 345 351 447 688 76 744 224 Legs . | . . . . . . . . . . . . Wheels . | . . . . . . . . . . . . Hover . | . . . . . . . . . . . . Flight . | . . . . . . . . . . . . Fastest Speed 50 | 50 160 240 160 160 160 160 160 160 160 160 160 Average Speed 184 | 155 240 240 198 160 160 160 160 160 160 160 160 Slowest Speed 320 | 160 320 240 240 160 160 160 160 160 160 160 160 Overloaded Moves . | . . . . . . . . . . . . Propulsion Burnouts . | . . . . . . . . . . . . Robots Hopped 1 | . 1 . . . . . . . . . . Potential Cave-ins . | . . . . . . . . . . . . Cave-ins Triggered . | . . . . . . . . . . . . Exploration Rate (%) 54 | 3 87 91 66 41 69 52 40 86 13 72 30 Regions Visited 11 Branch Regions 4 Pre-discovered Areas 7 | . 2 1 2 1 1 . . . . . . Known Exits Taken 5 | . . 1 1 . . 1 1 . 1 . . Unknown Exits Taken 4 | 1 1 . . 1 1 . . . . . . Scrap Searched 3 | . . 2 . 1 . . . . . . . Spaces Dug 58 | . . 30 3 . . . . 1 8 16 . Terrain Destroyed 232 | . . 72 11 . . . . 1 10 85 53 Melee 1 | . . . . . . . . 1 . . . Projectile 2 | . . . . . . . . . 2 . . AOE 229 | . . 72 11 . . . . . 8 85 53 Terrain Rammed . | . . . . . . . . . . . . Walls Destroyed . | . . . . . . . . . . . . Machines Disabled . | . . . . . . . . . . . . Actions | -11 -10 -10 -9 -9 -9 -8 -8 -8 -8 -8 -8 --------- Run | Yrd Mat Min Mat Min Exi Min Mat Gar Mat Gar Mat Total 6367 | 61 793 503 1234 222 353 375 588 905 98 895 340 Wait 510 | 2 19 . 194 22 . 13 74 103 3 33 47 Move 5083 | 47 711 460 812 182 344 350 447 687 76 743 224 Hop 1 | . 1 . . . . . . . . . . Pick Up 111 | 3 20 3 40 . 3 . 9 11 . 15 7 Fast Attach 22 | 7 . 1 5 . . . 2 . 1 2 4 Attach 21 | . . 2 12 . . . 1 1 . 2 3 Detach 1 | . . . 1 . . . . . . . . Swap 106 | . 9 10 19 1 2 1 7 15 5 29 8 Drop 117 | . 9 1 38 1 4 1 16 15 4 20 8 Fire 368 | 2 24 23 110 15 . 9 31 66 9 41 38 Melee 17 | . . . . . . . . 7 . 10 . Ram . | . . . . . . . . . . . . Kick . | . . . . . . . . . . . . Crush 10 | . . 3 3 1 . 1 1 . . . 1 Escape Stasis . | . . . . . . . . . . . . Rewire . | . . . . . . . . . . . . Trap . | . . . . . . . . . . . . Miscellaneous . | . . . . . . . . . . . . Route ------- -11/Scrapyard -10/Materials (discovered 5 exits: *Mat x3 / [*Min] / [*Sub]) -10/Mines (discovered 2 exits: *Mat x2) -9/Materials (discovered 4 exits: *Mat x3 / *Min) -9/Mines (discovered 2 exits: *Mat / *Exi) -9/Exiles -8/Mines -8/Materials (discovered 4 exits: Fac x3 / Gar) -8/Garrison (discovered 3 exits: *Mat x3) -8/Materials -8/Garrison (discovered 4 exits: *Fac x3 / *Mat) -8/Materials (discovered 3 exits: *Fac x3) History --------- Turn | Location | Event 7 | -11/Scrapyard | Discovered new exit (range 15) 96 | -11/Scrapyard | Entered Materials 97 | -10/Materials | Met a group of wandering Federalists 314 | -10/Materials | Build established: Mutant 870 | -10/Materials | Discovered new exit (range 8) 913 | -10/Materials | Identified exit to Materials 1368 | -10/Materials | Discovered new exit (range 6) 1456 | -10/Materials | Discovered new exit (range 16) 1460 | -10/Materials | Discovered exit to Materials (range 9) 1593 | -10/Materials | Learned location of 3 exits from Materials 1645 | -10/Materials | Loaded intel: 6 trap records 1723 | -10/Materials | Learned location of Mines (-8) 1745 | -10/Materials | Learned Storage security intel 1818 | -10/Materials | Learned Storage security intel 1939 | -10/Materials | Entered Mines 1997 | -10/Mines | Learned location of 1 exit from Materials 2028 | -10/Mines | Learned location of Zion (-7) 2146 | -10/Mines | Discovered exit to Materials (range 5) 3062 | -10/Mines | Discovered exit to Materials (range 6) 3134 | -10/Mines | Entered Materials 3134 | -9/Materials | Evolved 2 slots: Propulsion x1, Utility x1 3135 | -9/Materials | Identified exit to Materials 3135 | -9/Materials | Identified exit to Mines 3442 | -9/Materials | Lost 6 parts (1p2n1u2w) 3575 | -9/Materials | Build established: Scavenger-Mutant 3619 | -9/Materials | Repaired Lgt. Treads 3647 | -9/Materials | Repaired Lgt. Treads 3782 | -9/Materials | Destroyed 7 combat bots 4393 | -9/Materials | Repaired Lgt. Nuclear Core 4590 | -9/Materials | Central database locked down 4903 | -9/Materials | Learned location of 1 exit from Recycling 5051 | -9/Materials | Loaded intel: 17 trap records 5110 | -9/Materials | Learned location of 1 exit from Recycling 5252 | -9/Materials | Learned location of 1 exit from Storage 5298 | -9/Materials | Learned location of Recycling (-7) 5344 | -9/Materials | Entered Mines 5489 | -9/Mines | Assisted by bots powering up and referring to "LRC-V3" 5617 | -9/Mines | Discovered exit to Materials (range 6) 5644 | -9/Mines | Received a Mining Laser from a helpful Derelict 5686 | -9/Mines | Deemed a non-threat by the Exiles lab entrance 5686 | -9/Mines | Discovered new exit (range 5) 5706 | -9/Mines | Entered Exiles 5706 | -9/Exiles | Accompanied by 4 allies 5748 | -9/Exiles | Met 8R-AWN 5774 | -9/Exiles | Met EX-HEX 5854 | -9/Exiles | Met EX-DEC 6004 | -9/Exiles | Met EX-BIN 6041 | -9/Exiles | Aligned with FarCom system 6042 | -9/Exiles | Given EX-Vault access code 6090 | -9/Exiles | Opened EX-Vault 6105 | -9/Exiles | Found Deploy-a-Sentry 6108 | -9/Exiles | Found Deploy-a-Sentry 6112 | -9/Exiles | Found Deploy-a-Sentry 6146 | -9/Exiles | Warned to stay clear of 0b10 Research branches 6245 | -9/Exiles | Discovered new exit (range 14) 6264 | -9/Exiles | Left Exiles lab with Deploy-a-Sentry 6264 | -9/Exiles | Entered Mines 6264 | -8/Mines | Accompanied by 3 allies 6834 | -8/Mines | Discovered exit to Materials (range 8) 6868 | -8/Mines | Entered Materials 6868 | -8/Materials | Accompanied by 2 allies 6868 | -8/Materials | Evolved 2 slots: Propulsion x1, Utility x1 7406 | -8/Materials | Destroyed 7 combat bots 7650 | -8/Materials | Identified exit to Factory 7776 | -8/Materials | Identified exit to Garrison 7776 | -8/Materials | Entered Garrison 7894 | -8/Garrison | Garrison Relay disabled 8228 | -8/Garrison | DAS Turret deployed 8272 | -8/Garrison | Triggered checkpoint 8374 | -8/Garrison | Discovered new exit (range 10) 8536 | -8/Garrison | Discovered new exit (range 15) 8556 | -8/Garrison | Garrison Relay disabled 8760 | -8/Garrison | Triggered checkpoint 8807 | -8/Garrison | Discovered new exit (range 9) 8822 | -8/Garrison | Triggered checkpoint 8857 | -8/Garrison | Garrison Relay disabled 8902 | -8/Garrison | Learned Materials security intel 8916 | -8/Garrison | Discovered new exit (range 46) 8916 | -8/Garrison | Discovered new exit (range 70) 8916 | -8/Garrison | Discovered new exit (range 6) 9049 | -8/Garrison | Installed Relay Interface Framework 9198 | -8/Garrison | Entered Materials 9198 | -8/Materials | Accompanied by 3 allies 9212 | -8/Materials | Garrison activated, responded to threat 9307 | -8/Materials | Lost 3 allies 9356 | -8/Materials | Identified exit to Garrison 9356 | -8/Materials | Entered Garrison 9412 | -8/Garrison | Triggered checkpoint 9438 | -8/Garrison | Core integrity fell below 50% 9469 | -8/Garrison | Triggered checkpoint 9487 | -8/Garrison | Garrison Relay disabled 9815 | -8/Garrison | DAS Turret deployed 9817 | -8/Garrison | DAS Turret deployed 9826 | -8/Garrison | Triggered checkpoint 9860 | -8/Garrison | Triggered checkpoint 9911 | -8/Garrison | Rescued a captive Derelict 9920 | -8/Garrison | Garrison Relay disabled 9921 | -8/Garrison | Rescued a captive Derelict 10035 | -8/Garrison | Discovered exit to Factory (range 11) 10044 | -8/Garrison | Triggered checkpoint 10108 | -8/Garrison | Discovered new exit (range 5) 10324 | -8/Garrison | Triggered checkpoint 10326 | -8/Garrison | Triggered checkpoint 10381 | -8/Garrison | Discovered exit to Factory (range 8) 10398 | -8/Garrison | Triggered checkpoint 10404 | -8/Garrison | Discovered exit to Factory (range 53) 10404 | -8/Garrison | Discovered exit to Factory (range 46) 10404 | -8/Garrison | Discovered exit to Factory (range 14) 10404 | -8/Garrison | Discovered new exit (range 47) 10578 | -8/Garrison | Expanded RIF knowledge: Alert ID Control 10763 | -8/Garrison | Entered Materials 10763 | -8/Materials | Accompanied by 1 ally 10908 | -8/Materials | Core integrity fell below 20% 11040 | -8/Materials | Lost 3 parts (2n1w) 11163 | -8/Materials | First assault squad dispatched 11312 | -8/Materials | Destroyed by H-61 Shepherd with Heavy Assault Cannon Last Messages --------------- 11178_ L-31 Rogue unfolds itself. 11178_ M-28 Smith unfolds itself. 11181_ K-01 Serf collects debris. 11215_ G-47 Trooper destroyed. 11227_ QTTW=MFV%RITYD6ABGG9U:UZIAL 11227_ G-50 Soldier destroyed. 11233_ L-31 Rogue destroyed. 11236_ System corrupted: Flak Gun jammed. 11236_ Critical hit (Burn: +37). 11242_ G-47 Trooper destroyed. 11251_ Dropped Hvy. Laser. 11254_ Dropped Lgt. Treads. 11254_ Acquired Hvy. Laser. 11259_ System corrupted: Component data lost. 11267_ R-06 Scavenger collects Hvy. Mace. 11281_ M XSQNL/=1WS|Y6M&XWL